bitfinex/quotes_SOLUSD_20251126
["timestamp","ask_amount","ask_price","bid_price","bid_amount"]
[1764160047352,15.71263712,136.26,136.19,0.7]
[1764160047353,15.71263712,136.23,136.19,0.7]
[1764160047558,16.39263712,136.23,136.19,0.7]
[1764160047753,3.26,136.22,136.19,0.7]
[1764160049434,10.1626922,136.22,136.19,0.7]
[1764160049872,8.80994492,136.21,136.17,0.7]
[1764160050160,32.02150112,136.19,136.15,0.1]
[1764160050375,35.28150112,136.19,136.15,0.1]
[1764160050545,35.96150112,136.19,136.15,0.1]
[1764160050748,35.96150112,136.19,136.15,0.8]
[1764160052639,41.09882102,136.19,136.15,0.8]
[1764160052955,12.7200121,136.18,136.15,0.1]
[1764160053150,20.84995702,136.16,136.15,0.1]
[1764160053464,24.10995702,136.16,136.15,0.1]
[1764160053667,12.06994492,136.16,136.15,0.1]
[1764160054542,34.49341496,136.19,136.15,0.8]
[1764160054842,12.06994492,136.18,136.15,0.8]
[1764160055049,3.26,136.18,136.15,0.8]
[1764160055250,3.26,136.18,136.15,62.7]
[1764160055672,3.26,136.18,136.16,0.7]
[1764160056967,3.26,136.18,136.15,62.0]
[1764160056968,8.80994492,136.17,136.15,0.8]
[1764160058764,8.80994492,136.19,136.15,5.33804336]
[1764160059147,8.80994492,136.19,136.16,0.7]
[1764160059567,12.06994492,136.2,136.16,0.7]
[1764160059749,8.80994492,136.2,136.16,0.7]
[1764160061978,8.80994492,136.2,136.16,62.6]
[1764160062483,8.80994492,136.2,136.17,0.7]
[1764160062654,19.568864,136.21,136.17,0.7]
[1764160063377,19.568864,136.21,136.17,62.6]
[1764160063578,19.568864,136.21,136.18,0.7]
[1764160063745,3.26,136.21,136.18,0.7]
[1764160064777,8.80994492,136.22,136.18,0.7]
[1764160067490,16.308864,136.23,136.19,12.03485962]
[1764160068081,16.308864,136.23,136.2,0.72]
[1764160068974,16.308864,136.23,136.2,62.62]
[1764160069668,16.308864,136.23,136.2,61.9]
[1764160069991,16.308864,136.23,136.21,0.72]
[1764160070291,16.308864,136.23,136.21,62.62]
[1764160070983,16.308864,136.23,136.21,61.9]
[1764160071283,28.37880892,136.24,136.21,61.9]
[1764160071482,29.07880892,136.24,136.21,62.62]
[1764160071779,29.07880892,136.24,136.21,61.9]
[1764160073882,0.7,136.23,136.21,61.9]
[1764160078292,40.41366854,136.24,136.21,62.62]
[1764160078486,41.11366854,136.24,136.21,62.62]
[1764160080697,8.67615334,136.29,136.21,0.28432314]
[1764160080999,8.80994492,136.28,136.22,8.51449409]
[1764160081365,8.80994492,136.28,136.23,0.72]
[1764160081591,25.11880892,136.28,136.23,0.72]
[1764160082085,25.81880892,136.28,136.23,0.72]
[1764160082689,25.11880892,136.28,136.23,1.00432314]
[1764160082863,25.11880892,136.28,136.24,0.72]
[1764160084862,25.78880892,136.28,136.24,0.72]
[1764160085291,4.53449409,136.27,136.19,61.9]
[1764160085591,13.34443901,136.25,136.2,0.72]
[1764160085795,8.80994492,136.25,136.2,0.72]
[1764160085998,9.47994492,136.25,136.2,0.72]
[1764160086578,8.80994492,136.25,136.2,1.00432314]
[1764160086984,8.80994492,136.25,136.21,0.72]
[1764160089183,0.67,136.24,136.21,0.72]
[1764160089692,8.80994492,136.25,136.21,0.72]
[1764160091274,5.20449409,136.25,136.21,0.72]
[1764160091499,5.20449409,136.25,136.21,62.62]
[1764160092289,5.20449409,136.25,136.21,61.9]
[1764160092497,12.06994492,136.26,136.22,0.72]
[1764160093004,12.73994492,136.26,136.22,0.72]
[1764160094100,20.84335809,136.28,136.22,62.90432314]
[1764160094301,8.80994492,136.29,136.24,0.28432314]
[1764160094596,8.80994492,136.29,136.24,4.53449409]
[1764160094801,8.80994492,136.29,136.25,0.66]
[1764160095006,8.80994492,136.29,136.25,62.56]
[1764160095384,3.26,136.31,136.26,0.94432314]
[1764160095807,3.26,136.31,136.27,0.66]
[1764160097698,25.11880892,136.32,136.27,67.09449409]
[1764160098001,25.11880892,136.32,136.28,0.66]
[1764160098306,8.80994492,136.32,136.28,0.66]
[1764160098606,0.2,136.33,136.3,4.53449409]
[1764160098913,0.2,136.33,136.3,0.28432314]
[1764160099208,0.2,136.33,136.28,0.66]
[1764160099209,14.24443901,136.33,136.28,0.66]
[1764160099514,14.24443901,136.33,136.29,0.66]
[1764160099802,8.80994492,136.31,136.28,0.66]
[1764160100304,13.34443901,136.32,136.28,0.66]
[1764160100500,14.04443901,136.32,136.28,0.66]
[1764160101097,13.34443901,136.32,136.28,0.66]
[1764160101301,5.23449409,136.31,136.26,0.66]
[1764160101507,8.49449409,136.31,136.26,0.66]
[1764160102981,3.96,136.31,136.26,0.66]
[1764160104009,8.49449409,136.31,136.26,0.66]
[1764160104602,8.80994492,136.29,136.26,0.66]
[1764160104908,13.34443901,136.29,136.24,0.66]
[1764160105113,5.23449409,136.28,136.24,0.66]
[1764160105907,0.7,136.28,136.24,0.66]
[1764160106316,13.34443901,136.29,136.24,0.66]
[1764160106488,14.04443901,136.29,136.24,0.66]
[1764160106687,13.34443901,136.29,136.24,0.66]
[1764160106914,9.50994492,136.29,136.24,0.66]
[1764160108513,16.308864,136.29,136.24,0.94432314]
[1764160108707,8.80994492,136.28,136.24,5.19449409]
[1764160109014,8.80994492,136.28,136.25,0.66]
[1764160109802,3.26,136.3,136.25,5.19449409]
[1764160110017,8.80994492,136.29,136.26,0.66]
[1764160110391,0.7,136.31,136.26,0.94432314]
[1764160110392,8.80994492,136.31,136.26,0.94432314]
[1764160110718,8.80994492,136.31,136.26,62.84432314]
[1764160110888,8.80994492,136.31,136.27,0.66]
[1764160111699,8.80994492,136.31,136.27,5.19449409]
[1764160112030,8.80994492,136.31,136.27,0.66]
[1764160112208,8.80994492,136.31,136.26,66.71881723]
[1764160112209,8.80994492,136.31,136.28,0.66]
[1764160115520,8.80994492,136.31,136.26,62.18432314]
[1764160115730,0.7,136.3,136.26,62.84432314]
[1764160115895,0.7,136.3,136.26,62.18432314]
[1764160116096,8.80994492,136.29,136.26,61.9]
[1764160116516,9.50994492,136.29,136.26,61.9]
[1764160116834,9.50994492,136.29,136.26,62.56]
[1764160117133,12.40871352,136.29,136.26,62.56]
[1764160117740,9.50994492,136.29,136.26,62.56]
[1764160119229,8.80994492,136.29,136.27,0.66]
[1764160119426,8.80994492,136.29,136.27,62.56]
[1764160119807,8.80994492,136.29,136.28,0.66]
[1764160120009,3.26,136.3,136.28,0.66]
[1764160120224,8.80994492,136.31,136.28,0.66]
[1764160125310,2.8987686,136.29,136.25,0.67]
[1764160125514,3.5887686,136.3,136.25,0.67]
[1764160125832,3.5887686,136.29,136.25,0.67]
[1764160126210,8.80994492,136.28,136.25,0.67]
[1764160126410,8.80994492,136.28,136.21,3.26]
[1764160126411,12.75994492,136.28,136.21,3.26]
[1764160126622,8.80994492,136.26,136.23,0.67]
[1764160128738,14.96871352,136.28,136.23,0.67]
[1764160128912,15.65871352,136.28,136.23,0.67]
[1764160129114,8.80994492,136.26,136.23,0.67]
[1764160129635,14.96871352,136.28,136.23,0.67]
[1764160129835,15.65871352,136.28,136.23,0.67]
[1764160131012,8.80994492,136.27,136.23,3.5687686]
[1764160131533,8.80994492,136.27,136.24,0.67]
[1764160131833,8.80994492,136.27,136.24,62.57]
[1764160132237,8.80994492,136.27,136.25,0.67]
[1764160135541,8.80994492,136.27,136.24,61.9]
[1764160135736,0.69,136.26,136.24,61.9]
[1764160136127,9.49994492,136.27,136.24,61.9]
[1764160136536,9.49994492,136.27,136.24,62.57]
[1764160136834,8.80994492,136.27,136.25,0.67]
[1764160137435,8.80994492,136.27,136.25,62.57]
[1764160138929,8.80994492,136.27,136.25,61.9]
[1764160139124,8.80994492,136.27,136.25,62.57]
[1764160140953,9.49994492,136.27,136.25,61.9]
[1764160141137,8.80994492,136.27,136.25,62.57]
[1764160145148,8.80994492,136.27,136.25,61.9]
[1764160145456,9.47994492,136.26,136.25,61.9]
[1764160147253,8.80994492,136.26,136.25,61.9]
[1764160151555,11.70871352,136.26,136.25,61.9]
[1764160151751,8.80994492,136.26,136.25,61.9]
[1764160151942,11.70871352,136.26,136.25,61.9]
[1764160152567,8.80994492,136.26,136.25,61.9]
[1764160152843,11.70871352,136.26,136.25,61.9]
[1764160154164,24.98501734,136.29,136.25,61.9]
[1764160154456,8.80994492,136.28,136.26,0.67]
[1764160154761,11.70871352,136.28,136.26,0.67]
[1764160154958,2.8987686,136.27,136.25,61.9]
[1764160155149,2.8987686,136.27,136.25,62.57]
[1764160161259,3.6187686,136.27,136.25,164.1]
[1764160162636,0.72,136.27,136.25,164.1]
[1764160163737,3.6187686,136.27,136.25,164.1]
[1764160164665,3.6187686,136.31,136.26,0.81216157]
[1764160164852,8.80994492,136.3,136.26,0.81216157]
[1764160165042,8.80994492,136.3,136.26,0.67]
[1764160165043,12.42871352,136.3,136.26,0.67]
[1764160165247,11.70871352,136.28,136.24,0.95432314]
[1764160165761,12.42871352,136.28,136.25,0.67]
[1764160167349,9.52994492,136.28,136.25,0.67]
[1764160167546,8.80994492,136.28,136.25,0.67]
[1764160167748,9.52994492,136.28,136.25,0.67]
[1764160169570,8.80994492,136.28,136.25,0.67]
[1764160170168,8.80994492,136.28,136.25,164.77]
[1764160171071,8.80994492,136.28,136.25,164.1]
[1764160171274,8.80994492,136.28,136.26,0.67]
[1764160171775,8.80994492,136.26,136.25,164.1]
[1764160173878,9.52994492,136.26,136.25,61.9]
[1764160174067,12.42871352,136.26,136.25,61.9]
[1764160174771,14.06311989,136.26,136.25,61.9]
[1764160175088,17.32311989,136.26,136.25,61.9]
[1764160175667,16.60311989,136.26,136.25,61.9]
[1764160176282,17.32311989,136.26,136.25,61.9]
[1764160177779,14.06311989,136.26,136.25,61.9]
[1764160178687,8.80994492,136.27,136.25,61.9]
[1764160178889,9.52994492,136.27,136.25,61.9]
[1764160179065,8.80994492,136.27,136.25,62.57]
[1764160180868,8.80994492,136.27,136.26,0.67]
[1764160181179,8.80994492,136.27,136.25,61.9]
[1764160181384,8.80994492,136.27,136.25,62.57]
[1764160183992,8.80994492,136.27,136.25,61.9]
[1764160184186,8.80994492,136.27,136.26,0.71]
[1764160184989,8.80994492,136.27,136.26,62.61]
[1764160186798,16.978864,136.3,136.26,62.61]
[1764160187094,8.80994492,136.28,136.26,62.61]
[1764160189698,8.80994492,136.28,136.27,0.71]
[1764160190001,8.80994492,136.29,136.27,62.61]
[1764160193892,8.80994492,136.29,136.27,164.81]
[1764160194393,5.20317497,136.28,136.24,164.1]
[1764160194578,13.34311989,136.26,136.24,164.81]
[1764160194983,8.80994492,136.26,136.24,164.81]
[1764160199686,8.80994492,136.26,136.24,164.1]
[1764160199900,8.80994492,136.26,136.25,0.71]
[1764160201614,8.80994492,136.27,136.25,0.71]
[1764160203084,33.287728,136.3,136.25,0.71]
[1764160203303,18.89785881,136.29,136.25,0.71]
[1764160203486,14.01311989,136.29,136.25,0.71]
[1764160204791,8.80994492,136.25,136.22,61.9]
[1764160204999,8.80994492,136.23,136.21,0.71]
[1764160206113,4.53317497,136.22,136.2,102.2]
[1764160206319,4.53317497,136.22,136.2,61.9]
[1764160206521,8.80994492,136.21,136.2,61.9]
[1764160206905,8.80994492,136.21,136.2,62.62]
[1764160207902,8.80994492,136.21,136.2,61.9]
[1764160209395,8.80994492,136.21,136.2,62.62]
[1764160211194,8.80994492,136.21,136.2,61.9]
[1764160213920,8.80994492,136.21,136.2,62.62]
[1764160214232,8.80994492,136.21,136.2,61.9]
[1764160214810,4.53317497,136.23,136.2,62.56]
[1764160215118,8.80994492,136.23,136.21,0.66]
[1764160217438,13.34311989,136.23,136.2,61.9]
[1764160217741,14.00311989,136.23,136.2,62.56]
[1764160219129,9.46994492,136.23,136.2,62.56]
[1764160219334,8.80994492,136.23,136.21,0.66]
[1764160219632,8.80994492,136.23,136.2,61.9]
[1764160219826,9.46994492,136.23,136.2,61.9]
[1764160220031,8.80994492,136.23,136.21,0.66]
[1764160223439,8.80994492,136.23,136.21,62.56]
[1764160223738,4.53317497,136.25,136.22,0.66]
[1764160223942,8.80994492,136.25,136.22,62.56]
[1764160224311,9.46994492,136.25,136.22,62.56]
[1764160224826,8.80994492,136.23,136.22,61.9]
[1764160225014,13.34311989,136.23,136.22,61.9]
[1764160225214,22.81306481,136.23,136.22,61.9]
[1764160228843,29.82079258,136.23,136.22,61.9]
[1764160229230,46.12965658,136.23,136.22,61.9]
[1764160229430,46.12965658,136.23,136.18,62.56]
[1764160229636,8.80994492,136.19,136.18,61.9]
[1764160229834,13.34311989,136.19,136.18,61.9]
[1764160232674,5.19317497,136.21,136.18,62.56]
[1764160232958,14.00311989,136.21,136.18,62.56]
[1764160233535,4.53317497,136.21,136.18,61.9]
[1764160233855,13.34311989,136.22,136.19,0.66]
[1764160234061,14.00311989,136.22,136.19,62.56]
[1764160234257,13.34311989,136.22,136.19,62.56]
[1764160235259,4.53317497,136.21,136.19,61.9]
[1764160235458,5.19317497,136.21,136.19,61.9]
[1764160235664,5.19317497,136.2,136.19,61.9]
[1764160236164,4.53317497,136.2,136.19,61.9]
[1764160236570,2.90364103,136.2,136.19,61.9]
[1764160236771,3.56364103,136.2,136.19,61.9]
[1764160237666,28.68244995,136.2,136.19,61.9]
[1764160237949,8.80994492,136.19,136.15,62.0]
[1764160238165,8.80994492,136.16,136.15,62.0]
[1764160238953,8.80994492,136.16,136.15,62.66]
[1764160239356,2.90364103,136.18,136.15,62.66]
[1764160239551,2.90364103,136.18,136.15,62.0]
[1764160239758,8.80994492,136.16,136.15,62.0]
[1764160239958,8.80994492,136.16,136.15,62.66]
[1764160240476,3.56364103,136.18,136.15,62.66]
[1764160242775,2.90364103,136.18,136.15,62.0]
[1764160242977,11.71358595,136.16,136.15,62.0]
[1764160243160,8.80994492,136.16,136.15,0.1]
[1764160243356,12.37358595,136.16,136.15,0.1]
[1764160244677,20.41856762,136.16,136.15,0.1]
[1764160245784,12.65790909,136.16,136.15,0.1]
[1764160245987,12.37358595,136.16,136.15,0.1]
[1764160252265,15.27722698,136.16,136.15,0.1]
[1764160253092,9.46994492,136.16,136.15,0.1]
[1764160253285,15.27722698,136.16,136.15,0.1]
[1764160253790,18.22240976,136.16,136.15,0.1]
[1764160254290,15.31876873,136.16,136.15,0.1]
[1764160255578,12.4151277,136.16,136.15,0.1]
[1764160255989,15.31876873,136.16,136.15,0.1]
[1764160256285,35.27875225,136.16,136.15,0.1]
[1764160257286,42.57080316,136.16,136.15,0.1]
[1764160259788,14.65876873,136.16,136.15,0.1]
[1764160259989,11.71358595,136.16,136.15,0.1]
[1764160260295,25.11880892,136.16,136.15,0.8]
[1764160261290,8.80994492,136.16,136.15,0.8]
[1764160262977,11.71358595,136.16,136.15,0.8]
[1764160263176,12.41358595,136.16,136.15,0.1]
[1764160263890,11.71358595,136.16,136.15,0.1]
[1764160264298,11.71358595,136.16,136.15,0.8]
[1764160264469,8.80994492,136.16,136.15,0.8]
[1764160267215,19.21250503,136.17,136.15,0.8]
[1764160267216,7.00772777,136.2,136.15,164.9]
[1764160267375,0.68,136.23,136.15,164.9]
[1764160267376,8.80994492,136.19,136.15,3.70364103]
[1764160267576,8.80994492,136.19,136.16,0.72]
[1764160269204,11.71358595,136.21,136.16,0.72]
[1764160269578,2.90364103,136.2,136.16,0.72]
[1764160269788,8.80994492,136.19,136.16,0.72]
[1764160270286,11.71358595,136.19,136.16,0.72]
[1764160270793,11.71358595,136.17,136.16,0.72]
[1764160270994,8.80994492,136.17,136.16,0.72]
[1764160271803,8.80994492,136.19,136.16,0.72]
[1764160272007,8.80994492,136.21,136.16,3.90796417]
[1764160272195,8.80994492,136.21,136.16,1.00432314]
[1764160272395,8.80994492,136.21,136.17,0.72]
[1764160272605,8.80994492,136.21,136.17,164.82]
[1764160272807,11.71358595,136.21,136.17,164.82]
[1764160273107,8.80994492,136.21,136.18,0.72]
[1764160273686,8.80994492,136.23,136.18,62.90432314]
[1764160273885,8.80994492,136.23,136.19,0.72]
[1764160276098,2.90364103,136.25,136.2,0.28432314]
[1764160276302,8.80994492,136.25,136.2,0.28432314]
[1764160276512,11.71358595,136.25,136.21,0.71]
[1764160276912,8.80994492,136.25,136.21,0.71]
[1764160277402,11.71358595,136.25,136.21,0.71]
[1764160277913,8.80994492,136.25,136.21,0.71]
[1764160278115,11.71358595,136.25,136.21,0.71]
[1764160278798,11.71358595,136.25,136.21,62.61]
[1764160279000,2.90364103,136.24,136.21,62.61]
[1764160279313,11.71358595,136.22,136.21,61.9]
[1764160279501,8.80994492,136.19,136.17,0.71]
[1764160279699,2.90364103,136.18,136.15,62.71]
[1764160279905,2.90364103,136.16,136.15,62.0]
[1764160280105,2.90364103,136.16,136.15,62.71]
[1764160281003,11.71358595,136.16,136.15,62.71]
[1764160281216,11.71358595,136.16,136.15,0.1]
[1764160281407,28.02244995,136.16,136.15,0.1]
[1764160281615,28.70244995,136.16,136.15,0.1]
[1764160282119,28.02244995,136.16,136.15,0.1]
[1764160283304,28.70244995,136.16,136.15,0.1]
[1764160284410,28.02244995,136.16,136.15,0.1]
[1764160286222,28.02244995,136.16,136.15,0.81]
[1764160286815,16.988864,136.21,136.15,62.71]
[1764160287007,2.90364103,136.18,136.15,62.71]
[1764160287322,2.90364103,136.19,136.16,0.71]
[1764160287512,8.80994492,136.18,136.16,0.71]
[1764160288622,11.71358595,136.18,136.16,0.71]
[1764160289924,11.71358595,136.17,136.16,0.71]
[1764160291023,8.80994492,136.17,136.16,0.71]
[1764160291731,8.80994492,136.17,136.16,62.61]
[1764160293126,8.80994492,136.18,136.16,62.61]
[1764160293329,8.80994492,136.18,136.17,0.71]
[1764160294237,11.71358595,136.18,136.16,62.61]
[1764160294716,11.71358595,136.18,136.17,0.71]
[1764160294917,11.71358595,136.18,136.16,62.61]
[1764160296241,11.71358595,136.18,136.17,0.71]
[1764160296722,11.71358595,136.18,136.16,61.9]
[1764160296923,11.71358595,136.18,136.16,62.61]
[1764160297125,11.71358595,136.18,136.16,61.9]
[1764160297325,11.71358595,136.18,136.17,0.71]
[1764160297726,11.71358595,136.18,136.17,62.61]
[1764160297929,11.71358595,136.18,136.17,61.9]
[1764160298510,13.34856415,136.18,136.17,61.9]
[1764160300138,0.68,136.24,136.17,0.71]
[1764160300338,8.80994492,136.2,136.18,0.71]
[1764160306635,8.80994492,136.2,136.18,62.61]
[1764160307145,8.80994492,136.2,136.19,0.67]
[1764160307323,14.04856415,136.2,136.18,61.9]
[1764160307636,4.53861923,136.19,136.18,61.9]
[1764160309653,4.53861923,136.21,136.18,62.57]
[1764160309848,4.53861923,136.21,136.19,0.67]
[1764160309849,8.80994492,136.21,136.19,0.67]
[1764160310020,16.308864,136.22,136.19,164.77]
[1764160310219,25.11880892,136.23,136.19,164.77]
[1764160310435,4.53861923,136.25,136.2,0.67]
[1764160310736,8.80994492,136.23,136.2,0.67]
[1764160310945,13.34856415,136.25,136.2,0.67]
[1764160311122,8.80994492,136.23,136.2,0.67]
[1764160311317,8.80994492,136.24,136.2,165.05432314]
[1764160311746,8.80994492,136.24,136.21,0.67]
[1764160313139,4.53861923,136.23,136.21,0.67]
[1764160313345,13.34856415,136.23,136.21,0.67]
[1764160313642,13.34856415,136.23,136.2,164.1]
[1764160314136,13.34856415,136.23,136.21,0.67]
[1764160314439,8.80994492,136.23,136.21,0.67]
[1764160315343,13.34856415,136.22,136.2,164.1]
[1764160315540,8.80994492,136.2,136.18,0.67]
[1764160315742,8.80994492,136.2,136.18,62.57]
[1764160316245,8.80994492,136.2,136.19,0.67]
[1764160316419,8.80994492,136.2,136.19,61.9]
[1764160316624,5.23861923,136.2,136.18,61.9]
[1764160316843,14.04856415,136.19,136.18,61.9]
[1764160317354,8.80994492,136.18,136.15,0.77]
[1764160317559,8.80994492,136.16,136.15,0.1]
[1764160317927,8.80994492,136.16,136.15,0.77]
[1764160320526,4.53861923,136.17,136.15,0.1]
[1764160320527,8.80994492,136.17,136.15,0.1]
[1764160320833,13.34856415,136.17,136.15,0.1]
[1764160321718,8.80994492,136.17,136.15,0.1]
[1764160321922,13.34856415,136.17,136.15,0.77]
[1764160324261,8.80994492,136.17,136.15,0.77]
[1764160324651,13.34856415,136.17,136.15,0.77]
[1764160325035,4.53861923,136.16,136.15,0.1]
[1764160325551,13.34856415,136.17,136.15,0.1]
[1764160325860,16.308864,136.18,136.15,62.68]
[1764160326024,4.53861923,136.21,136.15,164.88]
[1764160326346,8.80994492,136.2,136.16,0.96432314]
[1764160326647,8.80994492,136.21,136.16,5.50294237]
[1764160326847,6.79231796,136.26,136.19,0.28432314]
[1764160327045,8.80994492,136.24,136.19,0.28432314]
[1764160327235,8.80994492,136.24,136.2,0.68]
[1764160328450,8.80994492,136.25,136.2,0.68]
[1764160328645,8.80994492,136.25,136.2,5.21861923]
[1764160328847,8.80994492,136.25,136.21,0.68]
[1764160329044,4.53861923,136.25,136.21,0.68]
[1764160329233,5.21861923,136.25,136.21,0.68]
[1764160329432,4.88059733,136.24,136.21,0.68]
[1764160329748,4.53861923,136.25,136.21,0.68]
[1764160329936,25.79880892,136.26,136.21,0.68]
[1764160329937,9.4190973,136.24,136.21,0.68]
[1764160330132,4.53861923,136.24,136.21,0.68]
[1764160330342,4.53861923,136.24,136.17,4.53861923]
[1764160330540,8.80994492,136.22,136.19,0.68]
[1764160331844,5.21861923,136.21,136.19,164.1]
[1764160332039,8.80994492,136.22,136.2,0.68]
[1764160332952,13.34856415,136.22,136.2,0.68]
[1764160333155,14.02856415,136.22,136.19,164.1]
[1764160333363,4.53861923,136.21,136.19,164.78]
[1764160334742,13.34856415,136.22,136.19,164.78]
[1764160335261,8.80994492,136.2,136.17,164.1]
[1764160335556,4.53861923,136.2,136.17,61.9]
[1764160335750,4.53861923,136.19,136.17,62.62]
[1764160337234,5.19861923,136.2,136.17,62.62]
[1764160337848,4.53861923,136.2,136.17,62.62]
[1764160339242,5.19861923,136.2,136.17,62.62]
[1764160339759,4.53861923,136.2,136.17,62.62]
[1764160340854,5.19861923,136.21,136.17,62.62]
[1764160341230,4.53861923,136.2,136.17,62.62]
[1764160341565,4.53861923,136.2,136.17,0.72]
[1764160341742,4.53861923,136.2,136.18,0.72]
[1764160343339,4.53861923,136.21,136.18,0.72]
[1764160344367,8.80994492,136.22,136.18,0.72]
[1764160344666,13.34856415,136.22,136.18,62.62]
[1764160345040,13.34856415,136.22,136.19,0.72]
[1764160345747,8.80994492,136.22,136.19,0.72]
[1764160345950,8.80994492,136.19,136.18,61.9]
[1764160346150,8.80994492,136.19,136.18,0.72]
[1764160346350,13.34856415,136.19,136.16,62.62]
[1764160346660,13.34856415,136.19,136.17,0.72]
[1764160347853,8.80994492,136.17,136.15,0.82]
[1764160348167,8.80994492,136.17,136.15,0.1]
[1764160348534,13.34856415,136.16,136.15,0.1]
[1764160348741,14.00856415,136.16,136.15,0.1]
[1764160350558,9.46994492,136.16,136.15,0.1]
[1764160350756,14.00856415,136.16,136.15,0.1]
[1764160351360,8.80994492,136.16,136.15,0.82]
[1764160352462,8.80994492,136.16,136.15,0.1]
[1764160352661,13.34856415,136.16,136.15,0.1]
[1764160354242,14.00856415,136.16,136.15,0.1]
[1764160354645,13.34856415,136.16,136.15,0.1]
[1764160357169,8.80994492,136.16,136.15,0.1]
[1764160358168,13.34856415,136.16,136.15,0.1]
[1764160358559,11.71528251,136.16,136.15,0.1]
[1764160359274,8.80994492,136.16,136.15,0.1]
[1764160359954,8.80994492,136.16,136.15,0.82]
[1764160360160,8.80994492,136.16,136.15,0.1]
[1764160360565,8.80994492,136.16,136.15,0.82]
[1764160360773,3.56533759,136.21,136.15,167.82533759]
[1764160360954,16.308864,136.19,136.15,167.82533759]
[1764160361157,16.308864,136.19,136.16,0.72]
[1764160361355,8.80994492,136.2,136.16,65.80966073]
[1764160361671,16.308864,136.18,136.17,0.72]
[1764160362071,8.80994492,136.2,136.17,0.72]
[1764160362567,0.66,136.23,136.17,3.62533759]
[1764160362754,8.80994492,136.23,136.19,2.90533759]
[1764160362959,25.11880892,136.24,136.2,0.72]
[1764160363359,25.77880892,136.24,136.2,0.72]
[1764160363563,25.77880892,136.24,136.18,3.18966073]
[1764160363564,0.66,136.23,136.18,0.28432314]
[1764160363763,0.66,136.23,136.19,0.72]
[1764160365679,25.11880892,136.24,136.19,3.62533759]
[1764160366155,25.11880892,136.24,136.2,0.68]
[1764160366479,25.81880892,136.24,136.2,0.68]
[1764160366678,28.02414651,136.21,136.17,62.58]
[1764160366869,28.02414651,136.21,136.17,0.68]
[1764160367069,28.72414651,136.21,136.17,0.68]
[1764160367268,25.81880892,136.21,136.17,0.68]
[1764160369082,8.80994492,136.19,136.17,61.9]
[1764160372688,0.7,136.19,136.17,61.9]
[1764160372870,8.80994492,136.17,136.15,62.0]
[1764160373871,8.80994492,136.17,136.15,62.68]
[1764160376790,9.50994492,136.17,136.15,0.1]
[1764160380301,8.80994492,136.17,136.15,0.78]
[1764160380793,8.80994492,136.17,136.15,0.1]
[1764160381293,16.308864,136.18,136.16,0.68]
[1764160381488,16.308864,136.19,136.16,3.58533759]
[1764160381982,16.308864,136.18,136.17,0.68]
[1764160382180,8.80994492,136.21,136.17,0.68]
[1764160382387,8.80994492,136.19,136.17,62.58]
[1764160384091,8.80994492,136.19,136.18,0.68]
[1764160385095,16.308864,136.21,136.18,0.68]
[1764160385403,8.80994492,136.2,136.18,0.68]
[1764160385596,8.80994492,136.2,136.17,61.9]
[1764160385806,8.80994492,136.2,136.18,0.67]
[1764160386997,8.80994492,136.2,136.18,62.57]
[1764160387699,17.018864,136.21,136.19,0.67]
[1764160387700,8.80994492,136.21,136.19,0.67]
[1764160388904,25.11880892,136.23,136.19,0.67]
[1764160389107,25.82880892,136.23,136.19,0.67]
[1764160390104,8.80994492,136.21,136.18,61.9]
[1764160390321,8.80994492,136.21,136.18,62.57]
[1764160390500,9.51994492,136.21,136.18,62.57]